fUSD/lending_fUSD_20250125
["ID","MTS","AMOUNT","RATE_DAILY","PERIOD"]
[350349143,1737807073892,-575.05,0.00018666,2]
[350349144,1737807073902,-1596.3,0.00018666,2]
[350349145,1737807073911,-1472.3,0.00018666,2]
[350349146,1737807073921,-500.0,0.00018666,2]
[350349147,1737807073931,-500.0,0.00018666,2]
[350349148,1737807073941,-1274.99,0.00018666,2]
[350349149,1737807073950,-566.71,0.00018751,2]
[350349150,1737807073959,-212.14,0.00018766,2]
[350349151,1737807073969,-392.2,0.00018766,2]
[350349152,1737807073979,-185.56,0.00018766,2]
[350349153,1737807073988,-500.0,0.00018766,2]
[350349154,1737807073998,-167.64,0.00018766,2]
[350349155,1737807074008,-500.0,0.00018766,2]
[350349156,1737807074017,-635.45,0.00018766,2]
[350349157,1737807074027,-906.75,0.00018766,2]
[350349158,1737807074037,-500.0,0.00018766,2]
[350349159,1737807074047,-1000.0,0.00018766,2]
[350349160,1737807074057,-1817.31,0.00018766,2]
[350349161,1737807074066,-791.67,0.00018766,2]
[350349162,1737807074076,-374.58,0.00018766,2]
[350349163,1737807074086,-1122.79,0.00018766,2]
[350349164,1737807074096,-1134.77,0.00018766,2]
[350349165,1737807074106,-1987.77,0.00018766,2]
[350349166,1737807074116,-626.37,0.00018766,2]
[350349167,1737807074125,-536.23,0.00018767,2]
[350349168,1737807074135,-500.0,0.00018767,2]
[350349169,1737807074143,-500.0,0.00018767,2]
[350349170,1737807074153,-1156.91,0.00018767,2]
[350349171,1737807074163,-995.51,0.00018767,2]
[350349172,1737807074172,-990.91,0.00018767,2]
[350349173,1737807074182,-605.7,0.00018767,2]
[350349174,1737807074191,-1310.85,0.00018767,2]
[350349175,1737807074201,-1790.49,0.00018767,2]
[350349176,1737807074211,-1594.57,0.00018767,2]
[350349177,1737807074221,-513.83,0.00018767,2]
[350349178,1737807074231,-586.37,0.00018767,2]
[350349179,1737807074240,-1597.93,0.00018767,2]
[350349180,1737807074250,-663.46,0.00018767,2]
[350349181,1737807074259,-500.0,0.00018767,2]
[350349182,1737807074269,-421.87,0.00018767,2]
[350349183,1737807074279,-579.17,0.00018767,2]
[350349184,1737807074374,-522.15,0.00018767,2]
[350349185,1737807074385,-1015.62,0.00018767,2]
[350349186,1737807074395,-807.99,0.00018767,2]
[350349187,1737807074405,-527.3868089,0.00018797,2]
[350349188,1737807074415,-3557.8,0.000188,2]
[350349189,1737807074424,-796.76,0.00018802,2]
[350349190,1737807074433,-500.0,0.00018802,2]
[350349191,1737807074442,-1013.73,0.00018802,2]
[350349192,1737807074452,-905.13,0.00018802,2]
[350349193,1737807074462,-646.83,0.00018802,2]
[350349194,1737807074471,-564.01,0.00018802,2]
[350349195,1737807074482,-1335.49,0.00018802,2]
[350349196,1737807074492,-1333.21,0.00018802,2]
[350349197,1737807074501,-847.45,0.00018802,2]
[350349198,1737807074511,-651.2,0.00018802,2]
[350349199,1737807074522,-1008.86,0.00018802,2]
[350349200,1737807074532,-500.0,0.00018802,2]
[350349201,1737807074543,-796.64,0.00018802,2]
[350349202,1737807074555,-581.62876943,0.00018802,2]
[350349203,1737807074566,-651.55,0.00018803,2]
[350349204,1737807074577,-1063.63,0.00018803,2]
[350349205,1737807074586,-500.0,0.00018803,2]
[350349206,1737807074596,-500.0,0.00018803,2]
[350349207,1737807074605,-1113.67,0.00018803,2]
[350349208,1737807074615,-492.05,0.00018803,2]
[350349209,1737807074624,-685.5,0.00018803,2]
[350349210,1737807074633,-1371.57,0.00018803,2]
[350349211,1737807074642,-500.0,0.00018803,2]
[350349212,1737807074652,-660.57,0.00018803,2]
[350349213,1737807074661,-575.05,0.00018803,2]
[350349214,1737807074671,-1596.3,0.00018803,2]
[350349215,1737807074680,-1472.3,0.00018803,2]
[350349216,1737807074690,-500.0,0.00018803,2]
[350349217,1737807074699,-500.0,0.00018803,2]
[350349218,1737807074708,-3905.0,0.00018817,2]
[350349219,1737807074718,-1176.0,0.00018817,2]
[350349220,1737807074727,-150.0,0.00018817,2]
[350349221,1737807074737,-1174.235,0.00018817,2]
[350349222,1737807074747,-6126.35304055,0.00018888,2]
[350349223,1737807074758,-1642.0,0.000189,2]
[350349224,1737807074768,-2600.0,0.000189,6]
[350349225,1737807074782,-563.66,0.00018902,2]
[350349226,1737807074792,-563.66,0.00018902,2]
[350349227,1737807074802,-151.0,0.00018903,2]
[350349228,1737807074811,-500.0,0.00018903,2]
[350349229,1737807074823,-500.0,0.00018903,2]
[350349230,1737807074832,-635.45,0.00018903,2]
[350349231,1737807074842,-906.75,0.00018903,2]
[350349232,1737807074854,-500.0,0.00018903,2]
[350349233,1737807074865,-1817.31,0.00018903,2]
[350349234,1737807074875,-791.67,0.00018903,2]
[350349235,1737807074885,-1122.79,0.00018903,2]
[350349236,1737807074895,-1134.77,0.00018903,2]
[350349237,1737807074905,-1987.77,0.00018903,2]
[350349238,1737807074917,-626.37,0.00018903,2]
[350349239,1737807074927,-536.23,0.00018904,2]
[350349240,1737807074936,-500.0,0.00018904,2]
[350349241,1737807074946,-197.4,0.00018904,2]
[350349242,1737807074956,-1156.91,0.00018904,2]
[350349243,1737807074966,-995.51,0.00018904,2]
[350349244,1737807074976,-990.91,0.00018904,2]
[350349245,1737807074986,-605.7,0.00018904,2]
[350349246,1737807074995,-1310.85,0.00018904,2]
[350349247,1737807075006,-1790.49,0.00018904,2]
[350349248,1737807075016,-1594.57,0.00018904,2]
[350349249,1737807075027,-513.83,0.00018904,2]
[350349250,1737807075036,-586.37,0.00018904,2]
[350349251,1737807075046,-1597.93,0.00018904,2]
[350349252,1737807075056,-663.46,0.00018904,2]
[350349253,1737807075066,-500.0,0.00018904,2]
[350349254,1737807075077,-579.17,0.00018904,2]
[350349255,1737807075086,-522.15,0.00018904,2]
[350349256,1737807075096,-1015.62,0.00018904,2]
[350349257,1737807075106,-807.99,0.00018904,2]
[350349258,1737807075116,-796.76,0.00018939,2]
[350349259,1737807075125,-500.0,0.00018939,2]
[350349260,1737807075134,-1013.73,0.00018939,2]
[350349261,1737807075145,-905.13,0.00018939,2]
[350349262,1737807075154,-646.83,0.00018939,2]
[350349263,1737807075164,-1335.49,0.00018939,2]
[350349264,1737807075173,-1333.21,0.00018939,2]
[350349265,1737807075183,-847.45,0.00018939,2]
[350349266,1737807075193,-651.2,0.00018939,2]
[350349267,1737807075203,-1008.86,0.00018939,2]
[350349268,1737807075213,-500.0,0.00018939,2]
[350349269,1737807075223,-796.64,0.00018939,2]
[350349270,1737807075233,-651.55,0.0001894,2]
[350349271,1737807075243,-1063.63,0.0001894,2]
[350349272,1737807075252,-500.0,0.0001894,2]
[350349273,1737807075262,-500.0,0.0001894,2]
[350349274,1737807075272,-1113.67,0.0001894,2]
[350349275,1737807075282,-685.5,0.0001894,2]
[350349276,1737807075291,-1371.57,0.0001894,2]
[350349277,1737807075300,-500.0,0.0001894,2]
[350349278,1737807075310,-660.57,0.0001894,2]
[350349279,1737807075319,-575.05,0.0001894,2]
[350349280,1737807075331,-1596.3,0.0001894,2]
[350349281,1737807075340,-1472.3,0.0001894,2]
[350349282,1737807075350,-500.0,0.0001894,2]
[350349283,1737807075359,-500.0,0.0001894,2]
[350349284,1737807075371,-527.3868089,0.00018969,2]
[350349285,1737807075381,-1000.0,0.00018985,2]
[350349286,1737807075390,-650.0,0.00019,2]
[350349287,1737807075400,-151.0,0.0001904,2]
[350349288,1737807075409,-333.15,0.0001904,2]
[350349289,1737807075419,-500.0,0.0001904,2]
[350349290,1737807075428,-635.45,0.0001904,2]
[350349291,1737807075438,-906.75,0.0001904,2]
[350349292,1737807075447,-378.9,0.0001904,2]
[350349293,1737807075456,-1817.31,0.0001904,2]
[350349294,1737807075466,-791.67,0.0001904,2]
[350349295,1737807075475,-1122.79,0.0001904,2]
[350349296,1737807075485,-1134.77,0.0001904,2]
[350349297,1737807075495,-1987.77,0.0001904,2]
[350349298,1737807075504,-626.37,0.0001904,2]
[350349299,1737807075514,-536.23,0.00019041,2]
[350349300,1737807075523,-500.0,0.00019041,2]
[350349301,1737807075533,-1156.91,0.00019041,2]
[350349302,1737807075542,-995.51,0.00019041,2]
[350349303,1737807075552,-990.91,0.00019041,2]
[350349304,1737807075561,-605.7,0.00019041,2]
[350349305,1737807075571,-1310.85,0.00019041,2]
[350349306,1737807075581,-1790.49,0.00019041,2]
[350349307,1737807075591,-1594.57,0.00019041,2]
[350349308,1737807075600,-513.83,0.00019041,2]
[350349309,1737807075609,-586.37,0.00019041,2]
[350349310,1737807075619,-1597.93,0.00019041,2]
[350349311,1737807075629,-663.46,0.00019041,2]
[350349312,1737807075638,-500.0,0.00019041,2]
[350349313,1737807075648,-579.17,0.00019041,2]
[350349314,1737807075657,-522.15,0.00019041,2]
[350349315,1737807075667,-1015.62,0.00019041,2]
[350349316,1737807075677,-807.99,0.00019041,2]
[350349317,1737807075687,-796.76,0.00019076,2]
[350349318,1737807075696,-586.74765814,0.00019076,2]
[350349319,1737807075706,-1013.73,0.00019076,2]
[350349320,1737807075794,-905.13,0.00019076,2]
[350349321,1737807075804,-646.83,0.00019076,2]
[350349322,1737807075814,-1335.49,0.00019076,2]
[350349323,1737807075823,-1333.21,0.00019076,2]
[350349324,1737807075832,-847.45,0.00019076,2]
[350349325,1737807075842,-651.2,0.00019076,2]
[350349326,1737807075851,-1008.86,0.00019076,2]
[350349327,1737807075861,-428.98,0.00019076,2]
[350349328,1737807075870,-796.64,0.00019076,2]
[350349329,1737807075881,-651.55,0.00019077,2]
[350349330,1737807075890,-1063.63,0.00019077,2]
[350349331,1737807075900,-500.0,0.00019077,2]
[350349332,1737807075909,-546.36,0.00019077,2]
[350349333,1737807075919,-1113.67,0.00019077,2]
[350349334,1737807075928,-685.5,0.00019077,2]
[350349335,1737807075937,-1371.57,0.00019077,2]
[350349336,1737807075948,-298.27,0.00019077,2]
[350349337,1737807075957,-660.57,0.00019077,2]
[350349338,1737807075967,-575.05,0.00019077,2]
[350349339,1737807075977,-1596.3,0.00019077,2]
[350349340,1737807075987,-1472.3,0.00019077,2]
[350349341,1737807075997,-500.0,0.00019077,2]
[350349342,1737807076006,-612.86,0.00019077,2]
[350349343,1737807076016,-527.3868089,0.00019141,2]
[350349344,1737807076026,-616.9,0.00019177,2]
[350349345,1737807076036,-635.45,0.00019177,2]
[350349346,1737807076047,-906.75,0.00019177,2]
[350349347,1737807076056,-1817.31,0.00019177,2]
[350349348,1737807076066,-791.67,0.00019177,2]
[350349349,1737807076076,-1122.79,0.00019177,2]
[350349350,1737807076085,-1134.77,0.00019177,2]
[350349351,1737807076095,-1987.77,0.00019177,2]
[350349352,1737807076106,-626.37,0.00019177,2]
[350349353,1737807076115,-536.23,0.00019178,2]
[350349354,1737807076125,-500.0,0.00019178,2]
[350349355,1737807076135,-1156.91,0.00019178,2]
[350349356,1737807076145,-995.51,0.00019178,2]
[350349357,1737807076155,-990.91,0.00019178,2]
[350349358,1737807076165,-605.7,0.00019178,2]
[350349359,1737807076174,-1310.85,0.00019178,2]
[350349360,1737807076183,-1790.49,0.00019178,2]
[350349361,1737807076193,-1594.57,0.00019178,2]
[350349362,1737807076203,-513.83,0.00019178,2]
[350349363,1737807076213,-586.37,0.00019178,2]
[350349364,1737807076223,-1597.93,0.00019178,2]
[350349365,1737807076232,-663.46,0.00019178,2]
[350349366,1737807076241,-500.0,0.00019178,2]
[350349367,1737807076251,-579.17,0.00019178,2]
[350349368,1737807076260,-522.15,0.00019178,2]
[350349369,1737807076269,-1015.62,0.00019178,2]
[350349370,1737807076279,-807.99,0.00019178,2]
[350349371,1737807076288,-896.22,0.00019178,2]
[350349372,1737807076298,-796.76,0.00019213,2]
[350349373,1737807076307,-1013.73,0.00019213,2]
[350349374,1737807076316,-905.13,0.00019213,2]
[350349375,1737807076326,-646.83,0.00019213,2]
[350349376,1737807076335,-1335.49,0.00019213,2]
[350349377,1737807076344,-1333.21,0.00019213,2]
[350349378,1737807076354,-847.45,0.00019213,2]
[350349379,1737807076363,-651.2,0.00019213,2]
[350349380,1737807076373,-1008.86,0.00019213,2]
[350349381,1737807076382,-796.64,0.00019213,2]
[350349382,1737807076390,-177.246814,0.00019214,2]
[350349383,1737807076410,-651.55,0.00019214,2]
[350349384,1737807076426,-1063.63,0.00019214,2]
[350349385,1737807076445,-418.55,0.00019214,2]
[350349386,1737807076460,-1113.67,0.00019214,2]
[350349387,1737807076479,-685.5,0.00019214,2]
[350349388,1737807076496,-1371.57,0.00019214,2]
[350349389,1737807076513,-660.57,0.00019214,2]
[350349390,1737807076532,-575.05,0.00019214,2]
[350349391,1737807076549,-1596.3,0.00019214,2]
[350349392,1737807076568,-1472.3,0.00019214,2]
[350349393,1737807076583,-500.0,0.00019214,2]
[350349394,1737807076602,-500.0,0.0001926,2]
[350349395,1737807076614,-527.3868089,0.00019314,2]
[350349396,1737807076631,-635.45,0.00019314,2]
[350349397,1737807076645,-906.75,0.00019314,2]
[350349398,1737807076660,-1817.31,0.00019314,2]
[350349399,1737807076675,-791.67,0.00019314,2]
[350349400,1737807076690,-1122.79,0.00019314,2]
[350349401,1737807076704,-1134.77,0.00019314,2]
[350349402,1737807076720,-1987.77,0.00019314,2]
[350349403,1737807076734,-626.37,0.00019314,2]
[350349404,1737807076750,-536.23,0.00019315,2]
[350349405,1737807076765,-500.0,0.00019315,2]
[350349406,1737807076783,-1156.91,0.00019315,2]
[350349407,1737807076797,-995.51,0.00019315,2]
[350349408,1737807076812,-990.91,0.00019315,2]
[350349409,1737807076826,-605.7,0.00019315,2]
[350349410,1737807076841,-1310.85,0.00019315,2]
[350349411,1737807076857,-1790.49,0.00019315,2]
[350349412,1737807076872,-1594.57,0.00019315,2]
[350349413,1737807076887,-513.83,0.00019315,2]
[350349414,1737807076902,-586.37,0.00019315,2]
[350349415,1737807076917,-1597.93,0.00019315,2]
[350349416,1737807076932,-663.46,0.00019315,2]
[350349417,1737807076946,-500.0,0.00019315,2]
[350349418,1737807076962,-579.17,0.00019315,2]
[350349419,1737807076977,-164.740247,0.00019315,2]
[350349420,1737807076992,-164.740247,0.00019315,2]
[350349421,1737807077006,-522.15,0.00019315,2]
[350349422,1737807077021,-1015.62,0.00019315,2]
[350349423,1737807077035,-807.99,0.00019315,2]
[350349424,1737807077049,-150.0,0.0001932,2]
[350349425,1737807077063,-150.0,0.0001932,2]
[350349426,1737807077077,-150.0,0.0001932,2]
[350349427,1737807077091,-156.063,0.0001932,2]
[350349428,1737807077106,-158.189,0.0001932,2]
[350349429,1737807077121,-150.0,0.0001932,2]
[350349430,1737807077136,-1270.0,0.0001932,2]
[350349431,1737807077150,-150.0,0.0001932,2]
[350349432,1737807077165,-636.0,0.0001932,2]
[350349433,1737807077181,-567.0,0.0001932,2]
[350349434,1737807077196,-1865.0,0.0001932,2]
[350349435,1737807077210,-2949.0,0.0001932,2]
[350349436,1737807077225,-907.0,0.0001932,2]
[350349437,1737807077239,-782.0,0.0001932,2]
[350349438,1737807077255,-1262.0,0.0001932,2]
[350349439,1737807077270,-3987.0,0.0001932,2]
[350349440,1737807077284,-538.0,0.0001932,2]
[350349441,1737807077300,-528.47734632,0.00019349,2]
[350349442,1737807077314,-796.76,0.0001935,2]
[350349443,1737807077329,-1013.73,0.0001935,2]
[350349444,1737807077344,-905.13,0.0001935,2]
[350349445,1737807077474,-646.83,0.0001935,2]
[350349446,1737807077486,-1335.49,0.0001935,2]
[350349447,1737807077497,-1333.21,0.0001935,2]
[350349448,1737807077507,-847.45,0.0001935,2]
[350349449,1737807077516,-651.2,0.0001935,2]
[350349450,1737807077525,-1008.86,0.0001935,2]
[350349451,1737807077536,-796.64,0.0001935,2]
[350349452,1737807077546,-651.55,0.00019351,2]
[350349453,1737807077555,-1063.63,0.00019351,2]
[350349454,1737807077564,-1113.67,0.00019351,2]
[350349455,1737807077573,-685.5,0.00019351,2]
[350349456,1737807077582,-1371.57,0.00019351,2]
[350349457,1737807077591,-660.57,0.00019351,2]
[350349458,1737807077600,-575.05,0.00019351,2]
[350349459,1737807077610,-1596.3,0.00019351,2]
[350349460,1737807077620,-1472.3,0.00019351,2]
[350349461,1737807077630,-221.76,0.00019351,2]
[350349462,1737807077639,-150.0,0.00019356,2]
[350349463,1737807077650,-528.47734632,0.0001937,2]
[350349464,1737807077661,-1088.01040897,0.00019378,2]
[350349465,1737807077670,-6126.35304055,0.00019391,2]
[350349466,1737807077680,-566.71,0.0001942,2]
[350349467,1737807077689,-528.47734632,0.00019443,2]
[350349468,1737807077698,-563.66,0.0001945,2]
[350349469,1737807077707,-635.45,0.00019451,2]
[350349470,1737807077717,-906.75,0.00019451,2]
[350349471,1737807077727,-1817.31,0.00019451,2]
[350349472,1737807077736,-791.67,0.00019451,2]
[350349473,1737807077748,-1122.79,0.00019451,2]
[350349474,1737807077757,-1134.77,0.00019451,2]
[350349475,1737807077767,-1987.77,0.00019451,2]
[350349476,1737807077780,-626.37,0.00019451,2]
[350349477,1737807077789,-536.23,0.00019452,2]
[350349478,1737807077798,-649.54792834,0.00019452,2]
[350349479,1737807077808,-1156.91,0.00019452,2]
[350349480,1737807077819,-995.51,0.00019452,2]
[350349481,1737807077827,-990.91,0.00019452,2]
[350349482,1737807077837,-605.7,0.00019452,2]
[350349483,1737807077846,-1310.85,0.00019452,2]
[350349484,1737807077856,-1790.49,0.00019452,2]
[350349485,1737807077865,-1594.57,0.00019452,2]
[350349486,1737807077875,-513.83,0.00019452,2]
[350349487,1737807077884,-586.37,0.00019452,2]
[350349488,1737807077893,-1597.93,0.00019452,2]
[350349489,1737807077902,-663.46,0.00019452,2]
[350349490,1737807077911,-349.85290071,0.00019452,2]
[350349491,1737807077920,-579.17,0.00019452,2]
[350349492,1737807077929,-522.15,0.00019452,2]
[350349493,1737807077938,-1015.62,0.00019452,2]
[350349494,1737807077949,-807.99,0.00019452,2]
[350349495,1737807077958,-528.47734632,0.00019459,2]
[350349496,1737807077967,-528.47734632,0.00019477,2]
[350349497,1737807077978,-527.3868089,0.00019486,2]
[350349498,1737807077988,-796.76,0.00019487,2]
[350349499,1737807077997,-1013.73,0.00019487,2]
[350349500,1737807078007,-905.13,0.00019487,2]
[350349501,1737807078016,-646.83,0.00019487,2]
[350349502,1737807078026,-1335.49,0.00019487,2]
[350349503,1737807078035,-1333.21,0.00019487,2]
[350349504,1737807078045,-847.45,0.00019487,2]
[350349505,1737807078055,-651.2,0.00019487,2]
[350349506,1737807078064,-1008.86,0.00019487,2]
[350349507,1737807078074,-796.64,0.00019487,2]
[350349508,1737807078083,-651.55,0.00019488,2]
[350349509,1737807078093,-1063.63,0.00019488,2]
[350349510,1737807078102,-1113.67,0.00019488,2]
[350349511,1737807078111,-685.5,0.00019488,2]
[350349512,1737807078120,-1371.57,0.00019488,2]
[350349513,1737807078130,-660.57,0.00019488,2]
[350349514,1737807078139,-575.05,0.00019488,2]
[350349515,1737807078149,-1596.3,0.00019488,2]
[350349516,1737807078159,-1472.3,0.00019488,2]
[350349517,1737807078169,-1000.0,0.000195,2]
[350349518,1737807078178,-150.0,0.00019569,2]
[350349519,1737807078188,-642.9136586,0.00019569,2]
[350349520,1737807078197,-635.45,0.00019588,2]
[350349521,1737807078207,-906.75,0.00019588,2]
[350349522,1737807078218,-1817.31,0.00019588,2]
[350349523,1737807078228,-791.67,0.00019588,2]
[350349524,1737807078237,-1122.79,0.00019588,2]
[350349525,1737807078246,-1134.77,0.00019588,2]
[350349526,1737807078256,-1987.77,0.00019588,2]
[350349527,1737807078266,-159.219143,0.00019588,2]
[350349528,1737807078275,-626.37,0.00019588,2]
[350349529,1737807078285,-159.219143,0.00019588,2]
[350349530,1737807078295,-536.35,0.00019589,2]
[350349531,1737807078304,-1157.08718188,0.00019589,2]
[350349532,1737807078314,-995.72647528,0.00019589,2]
[350349533,1737807078323,-991.08032332,0.00019589,2]
[350349534,1737807078333,-605.70420091,0.00019589,2]
[350349535,1737807078342,-1311.05290141,0.00019589,2]
[350349536,1737807078352,-1790.51408109,0.00019589,2]
[350349537,1737807078362,-1594.71182933,0.00019589,2]
[350349538,1737807078371,-513.96372556,0.00019589,2]
[350349539,1737807078380,-586.39472895,0.00019589,2]
[350349540,1737807078390,-1598.05273013,0.00019589,2]
[350349541,1737807078400,-663.50505789,0.00019589,2]
[350349542,1737807078410,-579.23873101,0.00019589,2]
[350349543,1737807078420,-522.20468824,0.00019589,2]
[350349544,1737807078430,-1015.79060374,0.00019589,2]
[350349545,1737807078440,-808.10573202,0.00019589,2]
[350349546,1737807078449,-150.0,0.00019597,2]
[350349547,1737807078459,-993.015634,0.00019599,2]
[350349548,1737807078468,-1086.93533277,0.000196,2]
[350349549,1737807078478,-796.89613129,0.00019624,2]
[350349550,1737807078488,-1013.82074722,0.00019624,2]
[350349551,1737807078498,-905.23895514,0.00019624,2]
[350349552,1737807078508,-647.03410745,0.00019624,2]
[350349553,1737807078518,-1335.60490231,0.00019624,2]
[350349554,1737807078528,-1333.42726,0.00019624,2]
[350349555,1737807078538,-847.48885638,0.00019624,2]
[350349556,1737807078547,-651.43336202,0.00019624,2]
[350349557,1737807078557,-1009.02,0.00019624,2]
[350349558,1737807078566,-796.6938672,0.00019624,2]
[350349559,1737807078576,-651.70695415,0.00019625,2]
[350349560,1737807078585,-1063.76509141,0.00019625,2]
[350349561,1737807078595,-1113.82165048,0.00019625,2]
[350349562,1737807078604,-685.61750102,0.00019625,2]
[350349563,1737807078613,-1371.57621195,0.00019625,2]
[350349564,1737807078623,-660.72919104,0.00019625,2]
[350349565,1737807078632,-575.1669748,0.00019625,2]
[350349566,1737807078641,-1596.52524115,0.00019625,2]
[350349567,1737807078651,-1472.37609872,0.00019625,2]
[350349568,1737807078661,-150.0,0.00019642,2]
[350349569,1737807078671,-527.3868089,0.00019659,2]
[350349570,1737807078680,-635.45,0.00019725,2]
[350349571,1737807078689,-906.75,0.00019725,2]
[350349572,1737807078699,-1817.33489956,0.00019725,2]
[350349573,1737807078708,-791.67,0.00019725,2]
[350349574,1737807078718,-1122.79,0.00019725,2]
[350349575,1737807078728,-1134.77,0.00019725,2]
[350349576,1737807078737,-1987.89345609,0.00019725,2]
[350349577,1737807078747,-626.51,0.00019725,2]
[350349578,1737807078756,-150.0,0.00019779,2]
[350349579,1737807078766,-150.0,0.00019825,2]
[350349580,1737807078779,-527.3868089,0.00019831,2]
[350349581,1737807078789,-500.0,0.0001984,2]
[350349582,1737807078799,-150.02081265,0.00019849,5]
[350349583,1737807078808,-635.45,0.00019862,2]
[350349584,1737807078819,-906.75,0.00019862,2]
[350349585,1737807078829,-791.67,0.00019862,2]
[350349586,1737807078838,-1122.79,0.00019862,2]
[350349587,1737807078852,-1134.77,0.00019862,2]
[350349588,1737807078861,-177.51,0.00019863,2]
[350349589,1737807078870,-6126.35304055,0.00019894,2]
[350349590,1737807078880,-3557.8,0.000199,2]
[350349591,1737807078889,-3300.0,0.000199,7]
[350349592,1737807078898,-1812.0,0.000199,2]
[350349593,1737807078907,-351.08,0.00019902,2]
[350349594,1737807078917,-150.0,0.0001991,2]
[350349595,1737807078926,-200.0,0.00019947,2]
[350349596,1737807078937,-200.0,0.00019947,2]
[350349597,1737807078947,-200.0,0.00019947,2]
[350349598,1737807078956,-200.0,0.00019947,2]
[350349599,1737807078967,-200.0,0.00019947,2]
[350349600,1737807078976,-200.0,0.00019947,2]
[350349601,1737807079077,-200.0,0.00019947,2]
[350349602,1737807079090,-200.0,0.00019947,2]
[350349603,1737807079099,-200.0,0.00019947,2]
[350349604,1737807079110,-200.0,0.00019947,2]
[350349605,1737807079120,-200.0,0.00019947,2]
[350349606,1737807079130,-200.0,0.00019947,2]
[350349607,1737807079143,-200.0,0.00019947,2]
[350349608,1737807079153,-200.0,0.00019947,2]
[350349609,1737807079163,-200.0,0.00019947,2]
[350349610,1737807079173,-200.0,0.00019947,2]
[350349611,1737807079183,-200.0,0.00019947,2]
[350349612,1737807079194,-200.0,0.00019947,2]
[350349613,1737807079204,-200.0,0.00019947,2]
[350349614,1737807079214,-197.0,0.00019947,2]
[350349615,1737807079226,-151.0,0.00019972,2]
[350349616,1737807079236,-151.0,0.00019972,2]
[350349617,1737807079246,-152.778165,0.00019972,2]
[350349618,1737807079256,-33943.0,0.00019973,2]
[350349619,1737807079265,-2239.4368255,0.0001999,2]
[350349620,1737807079275,-914.17,0.00019999,2]
[350349621,1737807079286,-635.55218362,0.00019999,2]
[350349622,1737807079296,-906.83568121,0.00019999,2]
[350349623,1737807079306,-791.76107086,0.00019999,2]
[350349624,1737807079316,-1122.93894834,0.00019999,2]
[350349625,1737807079325,-1135.00619659,0.00019999,2]
[350349626,1737807079335,-150.0,0.00019999,2]
[350349627,1737807079344,-563.66,0.00019999,2]
[350349628,1737807079353,-563.66,0.00019999,2]
[350349629,1737807079363,-563.66,0.00019999,2]
[350349630,1737807079373,-563.66,0.00019999,2]
[350349631,1737807079383,-445997.74765762,0.0002,2]
[350349632,1737807079393,-2000.0,0.0002,2]
[350349633,1737807079402,-2110.0,0.0002,2]
[350349634,1737807079412,-16530.09743692,0.0002,7]
[350349635,1737807079422,-2777.33490535,0.0002,2]
[350349636,1737807079431,-1790.77987893,0.0002,2]
[350349637,1737807079441,-250.74461181,0.0002,2]
[350349638,1737807079450,-335584.48223963,0.0002,2]
[350349639,1737807079460,-633.83675568,0.0002,2]
[350349640,1737807079469,-471.60334161,0.0002,10]
[350349641,1737807079478,-814.08910062,0.0002,2]
[350349642,1737807079488,-200.0,0.0002,2]